fUST/lending_fUST_20250302
["ID","MTS","AMOUNT","RATE_DAILY","PERIOD"]
[355094831,1740891039025,-500.0,0.0002227,2]
[355094832,1740891039034,-500.0,0.0002227,2]
[355094833,1740891039044,-500.0,0.0002227,2]
[355094834,1740891039054,-500.0,0.0002227,2]
[355094835,1740891039063,-500.0,0.0002227,2]
[355094836,1740891039073,-500.0,0.0002227,2]
[355094837,1740891039083,-500.0,0.0002227,2]
[355094838,1740891039092,-500.0,0.0002227,2]
[355094839,1740891039102,-500.0,0.0002227,2]
[355094840,1740891039111,-500.0,0.0002227,2]
[355094841,1740891039121,-500.0,0.0002227,2]
[355094842,1740891039131,-500.0,0.0002227,2]
[355094843,1740891039140,-500.0,0.0002227,2]
[355094844,1740891039150,-500.0,0.0002227,2]
[355094845,1740891039159,-500.0,0.0002227,2]
[355094846,1740891039169,-500.0,0.0002227,2]
[355094847,1740891039178,-500.0,0.0002227,2]
[355094848,1740891039188,-533.76,0.0002227,2]
[355094849,1740891039198,-500.0,0.0002227,2]
[355094850,1740891039208,-500.0,0.0002227,2]
[355094851,1740891039217,-500.0,0.0002227,2]
[355094852,1740891039227,-500.0,0.0002227,2]
[355094853,1740891039236,-500.0,0.0002227,2]
[355094854,1740891039245,-500.0,0.0002227,2]
[355094855,1740891039255,-500.0,0.0002227,2]
[355094856,1740891039264,-500.0,0.0002227,2]
[355094857,1740891039274,-500.0,0.0002227,2]
[355094858,1740891039283,-753.47,0.0002227,2]
[355094859,1740891039293,-500.0,0.0002227,2]
[355094860,1740891039302,-500.0,0.0002227,2]
[355094861,1740891039312,-500.0,0.0002227,2]
[355094862,1740891039322,-500.0,0.0002227,2]
[355094863,1740891039331,-500.0,0.0002227,2]
[355094864,1740891039340,-500.0,0.0002227,2]
[355094865,1740891039349,-500.0,0.0002227,2]
[355094866,1740891039359,-500.0,0.0002227,2]
[355094867,1740891039369,-500.0,0.0002227,2]
[355094868,1740891039378,-508.32367515,0.0002227,2]
[355094869,1740891039387,-557.74160315,0.0002227,2]
[355094870,1740891039396,-500.0,0.0002227,2]
[355094871,1740891039406,-500.0,0.0002227,2]
[355094872,1740891039416,-500.0,0.0002227,2]
[355094873,1740891039425,-250.0,0.0002227,2]
[355094874,1740891039435,-500.0,0.0002227,2]
[355094875,1740891039445,-1154.3,0.00022271,2]
[355094876,1740891039455,-500.0,0.00022271,2]
[355094877,1740891039465,-500.0,0.00022271,2]
[355094878,1740891039475,-2973.81,0.00022271,2]
[355094879,1740891039485,-914.1,0.00022271,2]
[355094880,1740891039495,-500.0,0.00022271,2]
[355094881,1740891039505,-500.0,0.00022271,2]
[355094882,1740891039515,-505.03,0.00022271,2]
[355094883,1740891039524,-500.0,0.00022271,2]
[355094884,1740891039534,-500.0,0.00022271,2]
[355094885,1740891039544,-1772.49,0.00022271,2]
[355094886,1740891039554,-682.1,0.00022271,2]
[355094887,1740891039564,-3795.35,0.00022271,2]
[355094888,1740891039574,-543.9,0.00022271,2]
[355094889,1740891039583,-5730.46,0.00022271,2]
[355094890,1740891039593,-500.0,0.00022271,2]
[355094891,1740891039603,-4535.27,0.00022271,2]
[355094892,1740891039613,-500.0,0.00022271,2]
[355094893,1740891039622,-500.0,0.00022271,2]
[355094894,1740891039632,-500.0,0.00022271,2]
[355094895,1740891039642,-500.0,0.00022271,2]
[355094896,1740891039652,-500.0,0.00022271,2]
[355094897,1740891039661,-1236.92,0.00022271,2]
[355094898,1740891039671,-1887.83,0.00022271,2]
[355094899,1740891039680,-500.0,0.00022271,2]
[355094900,1740891039690,-500.0,0.00022271,2]
[355094901,1740891039702,-713.67,0.00022271,2]
[355094902,1740891039712,-500.0,0.00022271,2]
[355094903,1740891039721,-500.0,0.00022271,2]
[355094904,1740891039731,-1282.57,0.00022271,2]
[355094905,1740891039741,-500.0,0.00022271,2]
[355094906,1740891039751,-500.0,0.00022271,2]
[355094907,1740891039761,-500.0,0.00022271,2]
[355094908,1740891039771,-500.0,0.00022271,2]
[355094909,1740891039781,-2373.21,0.00022271,2]
[355094910,1740891039790,-6974.83,0.00022271,2]
[355094911,1740891039799,-706.65,0.00022271,2]
[355094912,1740891039809,-904.54,0.00022271,2]
[355094913,1740891039818,-598.51,0.00022271,2]
[355094914,1740891039828,-2161.29,0.00022271,2]
[355094915,1740891039838,-500.0,0.00022273,2]
[355094916,1740891039848,-500.0,0.00022273,2]
[355094917,1740891039857,-500.0,0.00022273,2]
[355094918,1740891039867,-500.0,0.00022273,2]
[355094919,1740891039876,-500.0,0.00022273,2]
[355094920,1740891039885,-500.0,0.00022273,2]
[355094921,1740891039895,-500.0,0.00022273,2]
[355094922,1740891039904,-500.0,0.00022273,2]
[355094923,1740891039913,-500.0,0.00022273,2]
[355094924,1740891039923,-500.0,0.00022273,2]
[355094925,1740891039932,-500.0,0.00022273,2]
[355094926,1740891039942,-500.0,0.00022273,2]
[355094927,1740891039951,-500.0,0.00022273,2]
[355094928,1740891039960,-500.0,0.00022273,2]
[355094929,1740891039970,-500.0,0.00022273,2]
[355094930,1740891039979,-500.0,0.00022273,2]
[355094931,1740891039990,-500.0,0.00022273,2]
[355094932,1740891040001,-500.0,0.00022273,2]
[355094933,1740891040011,-509.9991991,0.00022273,2]
[355094934,1740891040020,-500.0,0.00022273,2]
[355094935,1740891040030,-724.09,0.00022273,2]
[355094936,1740891040046,-500.0,0.00022273,2]
[355094937,1740891040061,-500.0,0.00022273,2]
[355094938,1740891040075,-536.53770525,0.00022273,2]
[355094939,1740891040088,-730.08,0.00022273,2]
[355094941,1740891040102,-500.0,0.00022273,2]
[355094942,1740891040114,-500.0,0.00022273,2]
[355094943,1740891040127,-500.0,0.00022273,2]
[355094944,1740891040138,-944.38,0.00022273,2]
[355094947,1740891040150,-500.0,0.00022273,2]
[355094950,1740891040163,-500.0,0.00022273,2]
[355094952,1740891040176,-500.0,0.00022273,2]
[355094953,1740891040189,-570.76,0.00022273,2]
[355094955,1740891040202,-500.0,0.00022273,2]
[355094957,1740891040214,-500.0,0.00022273,2]
[355094959,1740891040227,-500.0,0.00022273,2]
[355094962,1740891040240,-500.0,0.00022273,2]
[355094964,1740891040251,-500.0,0.00022273,2]
[355094965,1740891040263,-503.03,0.00022273,2]
[355094966,1740891040278,-500.0,0.00022273,2]
[355094967,1740891040290,-500.0,0.00022273,2]
[355094968,1740891040303,-995.77,0.00022273,2]
[355094969,1740891040316,-500.0,0.00022273,2]
[355094970,1740891040327,-574.97,0.00022273,2]
[355094971,1740891040339,-500.0,0.00022273,2]
[355094972,1740891040352,-500.0,0.00022273,2]
[355094973,1740891040363,-500.0,0.00022273,2]
[355094976,1740891040375,-500.0,0.00022273,2]
[355094978,1740891040387,-500.0,0.00022273,2]
[355094980,1740891040401,-500.0,0.00022273,2]
[355094982,1740891040413,-500.0,0.00022273,2]
[355094985,1740891040425,-500.0,0.00022273,2]
[355094987,1740891040437,-921.28,0.00022273,2]
[355094988,1740891040448,-500.0,0.00022273,2]
[355094989,1740891040459,-500.0,0.00022273,2]
[355094990,1740891040470,-500.0,0.00022273,2]
[355094991,1740891040480,-500.0,0.00022273,2]
[355094992,1740891040493,-500.0,0.00022273,2]
[355094993,1740891040503,-500.0,0.00022273,2]
[355094994,1740891040516,-500.0,0.00022273,2]
[355094995,1740891040529,-500.0,0.00022273,2]
[355094996,1740891040541,-500.0,0.00022273,2]
[355094997,1740891040553,-500.0,0.00022273,2]
[355094998,1740891040566,-505.8924663,0.00022273,2]
[355094999,1740891040578,-500.0,0.00022273,2]
[355095000,1740891040591,-500.0,0.00022273,2]
[355095001,1740891040603,-500.0,0.00022273,2]
[355095002,1740891040616,-500.0,0.00022273,2]
[355095003,1740891040629,-500.0,0.00022273,2]
[355095004,1740891040642,-690.0,0.00022273,2]
[355095005,1740891040655,-500.0,0.00022273,2]
[355095006,1740891040666,-500.0,0.00022273,2]
[355095007,1740891040678,-586.41,0.00022273,2]
[355095008,1740891040689,-500.0,0.00022273,2]
[355095009,1740891040702,-500.0,0.00022273,2]
[355095010,1740891040713,-500.0,0.00022273,2]
[355095011,1740891040725,-500.0,0.00022273,2]
[355095012,1740891040736,-500.0,0.00022273,2]
[355095013,1740891040749,-1564.87,0.00022273,2]
[355095014,1740891040763,-500.0,0.00022273,2]
[355095015,1740891040776,-1548.28,0.00022273,2]
[355095016,1740891040789,-636.65,0.00022273,2]
[355095017,1740891040799,-80347.49,0.00022273,2]
[355095018,1740891040809,-500.0,0.00022273,2]
[355095019,1740891040820,-1814.59,0.00022273,2]
[355095020,1740891040832,-983.66,0.00022273,2]
[355095021,1740891040843,-500.0,0.00022273,2]
[355095022,1740891040856,-2298.01,0.00022273,2]
[355095023,1740891040868,-500.0,0.00022273,2]
[355095024,1740891040879,-500.0,0.00022273,2]
[355095025,1740891040890,-500.0,0.00022273,2]
[355095026,1740891040901,-500.0,0.00022273,2]
[355095027,1740891040911,-500.0,0.00022273,2]
[355095028,1740891040922,-500.0,0.00022273,2]
[355095029,1740891040933,-196.73,0.00022273,2]
[355095030,1740891040944,-500.0,0.00022273,2]
[355095031,1740891040955,-500.0,0.00022273,2]
[355095032,1740891040967,-500.0,0.00022273,2]
[355095033,1740891040978,-500.0,0.00022273,2]
[355095034,1740891040990,-500.0,0.00022273,2]
[355095035,1740891041001,-568.53,0.00022273,2]
[355095036,1740891041013,-675.58,0.00022273,2]
[355095037,1740891041025,-500.0,0.00022273,2]
[355095038,1740891041036,-500.0,0.00022273,2]
[355095039,1740891041047,-500.0,0.00022273,2]
[355095040,1740891041059,-500.0,0.00022273,2]
[355095041,1740891041070,-500.0,0.00022273,2]
[355095042,1740891041085,-500.0,0.00022273,2]
[355095043,1740891041096,-500.0,0.00022273,2]
[355095044,1740891041107,-500.0,0.00022273,2]
[355095045,1740891041119,-500.0,0.00022273,2]
[355095046,1740891041130,-1404.94,0.00022273,2]
[355095047,1740891041143,-500.0,0.00022273,2]
[355095048,1740891041156,-913.28,0.00022273,2]
[355095049,1740891041168,-500.0,0.00022273,2]
[355095050,1740891041179,-1435.15,0.00022273,2]
[355095051,1740891041194,-500.0,0.00022273,2]
[355095052,1740891041207,-500.0,0.00022273,2]
[355095053,1740891041219,-213.3686491,0.00022535,2]
[355095054,1740891041232,-3815.13,0.00022543,2]
[355095055,1740891041244,-2139.17,0.00022543,2]
[355095056,1740891041257,-1000.0,0.00022543,5]
[355095057,1740891041268,-670.21,0.00022543,2]
[355095058,1740891041280,-500.0,0.00022543,2]
[355095059,1740891041291,-502.66,0.00022543,2]
[355095060,1740891041303,-500.0,0.00022543,2]
[355095061,1740891041315,-500.0,0.00022543,2]
[355095062,1740891041326,-594.37,0.00022543,2]
[355095063,1740891041337,-500.0,0.00022543,2]
[355095064,1740891041349,-3134.93,0.00022543,2]
[355095065,1740891041360,-500.0,0.00022543,2]
[355095066,1740891041371,-500.0,0.00022543,2]
[355095067,1740891041382,-767.93,0.00022543,2]
[355095068,1740891041393,-500.0,0.00022543,2]
[355095069,1740891041411,-500.0,0.00022543,2]
[355095070,1740891041423,-7112.25,0.00022543,2]
[355095071,1740891041434,-5667.16,0.00022543,2]
[355095072,1740891041446,-3514.94,0.00022543,2]
[355095073,1740891041457,-500.0,0.00022544,2]
[355095074,1740891041468,-500.0,0.00022544,2]
[355095075,1740891041479,-500.0,0.00022544,2]
[355095076,1740891041491,-500.0,0.00022544,2]
[355095077,1740891041503,-500.0,0.00022544,2]
[355095078,1740891041513,-500.0,0.00022544,2]
[355095079,1740891041525,-500.0,0.00022544,2]
[355095080,1740891041536,-500.0,0.00022544,2]
[355095081,1740891041548,-500.0,0.00022544,2]
[355095082,1740891041559,-500.0,0.00022544,2]
[355095083,1740891041571,-500.0,0.00022544,2]
[355095084,1740891041582,-500.0,0.00022544,2]
[355095085,1740891041593,-500.0,0.00022544,2]
[355095086,1740891041604,-500.0,0.00022544,2]
[355095087,1740891041616,-500.0,0.00022544,2]
[355095088,1740891041627,-500.0,0.00022544,2]
[355095089,1740891041638,-500.0,0.00022544,2]
[355095090,1740891041649,-500.0,0.00022544,2]
[355095091,1740891041660,-500.0,0.00022544,2]
[355095092,1740891041672,-500.0,0.00022544,2]
[355095093,1740891041684,-533.76,0.00022544,2]
[355095094,1740891041696,-500.0,0.00022544,2]
[355095095,1740891041708,-500.0,0.00022544,2]
[355095096,1740891041719,-500.0,0.00022544,2]
[355095097,1740891041730,-500.0,0.00022544,2]
[355095098,1740891041742,-500.0,0.00022544,2]
[355095099,1740891041753,-500.0,0.00022544,2]
[355095100,1740891041764,-753.47,0.00022544,2]
[355095101,1740891041777,-500.0,0.00022544,2]
[355095102,1740891041788,-500.0,0.00022544,2]
[355095103,1740891041799,-500.0,0.00022544,2]
[355095104,1740891041810,-500.0,0.00022544,2]
[355095105,1740891041822,-500.0,0.00022544,2]
[355095106,1740891041833,-500.0,0.00022544,2]
[355095107,1740891041844,-250.0,0.00022544,2]
[355095108,1740891041856,-500.0,0.00022544,2]
[355095109,1740891041867,-1154.3,0.00022545,2]
[355095110,1740891041879,-500.0,0.00022545,2]
[355095111,1740891041890,-500.0,0.00022545,2]
[355095112,1740891041902,-2973.81,0.00022545,2]
[355095113,1740891041913,-914.1,0.00022545,2]
[355095114,1740891041925,-500.0,0.00022545,2]
[355095115,1740891041936,-500.0,0.00022545,2]
[355095116,1740891041947,-505.03,0.00022545,2]
[355095117,1740891041958,-500.0,0.00022545,2]
[355095118,1740891041969,-500.0,0.00022545,2]
[355095119,1740891041981,-1772.49,0.00022545,2]
[355095120,1740891041992,-682.1,0.00022545,2]
[355095123,1740891042004,-3795.35,0.00022545,2]
[355095125,1740891042015,-543.9,0.00022545,2]
[355095127,1740891042026,-5730.46,0.00022545,2]
[355095129,1740891042037,-500.0,0.00022545,2]
[355095131,1740891042048,-4535.27,0.00022545,2]
[355095133,1740891042059,-500.0,0.00022545,2]
[355095135,1740891042070,-500.0,0.00022545,2]
[355095136,1740891042081,-500.0,0.00022545,2]
[355095137,1740891042092,-500.0,0.00022545,2]
[355095138,1740891042103,-500.0,0.00022545,2]
[355095139,1740891042114,-1236.92,0.00022545,2]
[355095140,1740891042125,-1887.83,0.00022545,2]
[355095141,1740891042136,-500.0,0.00022545,2]
[355095142,1740891042147,-713.67,0.00022545,2]
[355095143,1740891042158,-500.0,0.00022545,2]
[355095144,1740891042170,-500.0,0.00022545,2]
[355095145,1740891042181,-1282.57,0.00022545,2]
[355095146,1740891042192,-500.0,0.00022545,2]
[355095147,1740891042203,-500.0,0.00022545,2]
[355095148,1740891042215,-516.59,0.00022545,2]
[355095149,1740891042226,-500.0,0.00022545,2]
[355095150,1740891042237,-2373.21,0.00022545,2]
[355095151,1740891042248,-6974.83,0.00022545,2]
[355095152,1740891042260,-706.65,0.00022545,2]
[355095153,1740891042271,-904.54,0.00022545,2]
[355095154,1740891042281,-598.51,0.00022545,2]
[355095155,1740891042292,-2161.29,0.00022545,2]
[355095156,1740891042304,-500.0,0.00022547,2]
[355095157,1740891042315,-500.0,0.00022547,2]
[355095158,1740891042325,-500.0,0.00022547,2]
[355095159,1740891042337,-500.0,0.00022547,2]
[355095160,1740891042348,-628.37,0.00022547,2]
[355095161,1740891042359,-500.0,0.00022547,2]
[355095162,1740891042369,-500.0,0.00022547,2]
[355095163,1740891042380,-724.09,0.00022547,2]
[355095164,1740891042392,-500.0,0.00022547,2]
[355095166,1740891042404,-630.59,0.00022547,2]
[355095167,1740891042416,-730.08,0.00022547,2]
[355095168,1740891042427,-500.0,0.00022547,2]
[355095169,1740891042439,-500.0,0.00022547,2]
[355095170,1740891042450,-500.0,0.00022547,2]
[355095171,1740891042461,-944.38,0.00022547,2]
[355095172,1740891042473,-500.0,0.00022547,2]
[355095173,1740891042485,-569.54,0.00022547,2]
[355095174,1740891042497,-500.0,0.00022547,2]
[355095175,1740891042509,-570.76,0.00022547,2]
[355095176,1740891042521,-500.0,0.00022547,2]
[355095177,1740891042533,-500.0,0.00022547,2]
[355095178,1740891042543,-524.66711607,0.00022547,2]
[355095179,1740891042554,-500.0,0.00022547,2]
[355095180,1740891042563,-500.0,0.00022547,2]
[355095181,1740891042573,-503.03,0.00022547,2]
[355095182,1740891042583,-500.0,0.00022547,2]
[355095183,1740891042593,-500.0,0.00022547,2]
[355095184,1740891042603,-995.77,0.00022547,2]
[355095185,1740891042613,-500.0,0.00022547,2]
[355095186,1740891042623,-574.97,0.00022547,2]
[355095187,1740891042633,-500.0,0.00022547,2]
[355095188,1740891042644,-500.0,0.00022547,2]
[355095189,1740891042654,-500.0,0.00022547,2]
[355095190,1740891042664,-500.0,0.00022547,2]
[355095191,1740891042674,-500.0,0.00022547,2]
[355095192,1740891042685,-500.0,0.00022547,2]
[355095193,1740891042695,-500.0,0.00022547,2]
[355095194,1740891042708,-500.0,0.00022547,2]
[355095195,1740891042718,-921.28,0.00022547,2]
[355095196,1740891042729,-500.0,0.00022547,2]
[355095199,1740891043061,-500.0,0.00022547,2]
[355095200,1740891043073,-500.0,0.00022547,2]
[355095201,1740891043083,-500.0,0.00022547,2]
[355095202,1740891043093,-500.0,0.00022547,2]
[355095205,1740891043102,-500.0,0.00022547,2]
[355095206,1740891043112,-500.0,0.00022547,2]
[355095207,1740891043121,-500.0,0.00022547,2]
[355095208,1740891043130,-500.0,0.00022547,2]
[355095209,1740891043140,-500.0,0.00022547,2]
[355095210,1740891043149,-500.0,0.00022547,2]
[355095211,1740891043159,-500.0,0.00022547,2]
[355095212,1740891043168,-500.0,0.00022547,2]
[355095213,1740891043177,-500.0,0.00022547,2]
[355095214,1740891043188,-500.0,0.00022547,2]
[355095216,1740891043198,-690.0,0.00022547,2]
[355095217,1740891043207,-500.0,0.00022547,2]
[355095218,1740891043217,-500.0,0.00022547,2]
[355095219,1740891043227,-586.41,0.00022547,2]
[355095220,1740891043237,-500.0,0.00022547,2]
[355095221,1740891043246,-500.0,0.00022547,2]
[355095222,1740891043256,-220.39037452,0.00022547,2]
[355095223,1740891043266,-500.0,0.00022547,2]
[355095224,1740891043275,-500.0,0.00022547,2]
[355095225,1740891043285,-1564.87,0.00022547,2]
[355095226,1740891043295,-223.39069967,0.00022547,2]
[355095227,1740891043305,-1548.28,0.00022547,2]
[355095228,1740891043314,-636.65,0.00022547,2]
[355095230,1740891043324,-80347.49,0.00022547,2]
[355095232,1740891043334,-500.0,0.00022547,2]
[355095234,1740891043343,-1814.59,0.00022547,2]
[355095235,1740891043353,-983.66,0.00022547,2]
[355095236,1740891043363,-500.0,0.00022547,2]
[355095237,1740891043372,-2298.01,0.00022547,2]
[355095238,1740891043382,-159.29051029,0.00022547,2]
[355095239,1740891043392,-500.0,0.00022547,2]
[355095240,1740891043401,-500.0,0.00022547,2]
[355095241,1740891043411,-500.0,0.00022547,2]
[355095242,1740891043420,-500.0,0.00022547,2]
[355095243,1740891043430,-500.0,0.00022547,2]
[355095244,1740891043440,-500.0,0.00022547,2]
[355095245,1740891043449,-500.0,0.00022547,2]
[355095246,1740891043459,-509.13399352,0.00022547,2]
[355095247,1740891043470,-500.0,0.00022547,2]
[355095248,1740891043480,-568.53,0.00022547,2]
[355095249,1740891043490,-675.58,0.00022547,2]
[355095250,1740891043500,-500.0,0.00022547,2]
[355095251,1740891043512,-500.0,0.00022547,2]
[355095252,1740891043522,-500.0,0.00022547,2]
[355095253,1740891043533,-500.0,0.00022547,2]
[355095254,1740891043543,-500.0,0.00022547,2]
[355095255,1740891043554,-500.0,0.00022547,2]
[355095256,1740891043564,-500.0,0.00022547,2]
[355095257,1740891043574,-500.0,0.00022547,2]
[355095258,1740891043583,-500.0,0.00022547,2]
[355095259,1740891043594,-1404.94,0.00022547,2]
[355095260,1740891043604,-500.0,0.00022547,2]
[355095261,1740891043614,-913.28,0.00022547,2]
[355095262,1740891043624,-500.0,0.00022547,2]
[355095263,1740891043634,-1435.15,0.00022547,2]
[355095264,1740891043643,-500.0,0.00022547,2]
[355095265,1740891043653,-500.0,0.00022547,2]
[355095266,1740891043663,-3815.13,0.00022817,2]
[355095267,1740891043672,-2139.17,0.00022817,2]
[355095268,1740891043682,-1000.0,0.00022817,5]
[355095269,1740891043692,-670.21,0.00022817,2]
[355095270,1740891043704,-500.0,0.00022817,2]
[355095271,1740891043713,-502.66,0.00022817,2]
[355095272,1740891043723,-500.0,0.00022817,2]
[355095273,1740891043732,-594.37,0.00022817,2]
[355095274,1740891043743,-579.5,0.00022817,2]
[355095275,1740891043752,-3134.93,0.00022817,2]
[355095276,1740891043762,-500.0,0.00022817,2]
[355095277,1740891043773,-456.76,0.00022817,2]
[355095278,1740891043783,-767.93,0.00022817,2]
[355095279,1740891043792,-500.0,0.00022817,2]
[355095280,1740891043802,-329.59614288,0.00022817,2]
[355095281,1740891043811,-7112.25,0.00022817,2]
[355095282,1740891043821,-5667.16,0.00022817,2]
[355095283,1740891043831,-3514.94,0.00022817,2]
[355095284,1740891043840,-500.0,0.00022818,2]
[355095285,1740891043849,-500.0,0.00022818,2]
[355095286,1740891043859,-500.0,0.00022818,2]
[355095287,1740891043868,-500.0,0.00022818,2]
[355095288,1740891043878,-500.0,0.00022818,2]
[355095289,1740891043888,-308.97,0.00022818,2]
[355095290,1740891043898,-500.0,0.00022818,2]
[355095291,1740891043907,-500.0,0.00022818,2]
[355095292,1740891043916,-500.0,0.00022818,2]
[355095293,1740891043926,-500.0,0.00022818,2]
[355095294,1740891043935,-500.0,0.00022818,2]
[355095295,1740891043944,-500.0,0.00022818,2]
[355095296,1740891043954,-500.0,0.00022818,2]
[355095297,1740891043963,-500.0,0.00022818,2]
[355095298,1740891043974,-533.76,0.00022818,2]
[355095299,1740891043984,-500.0,0.00022818,2]
[355095300,1740891043993,-500.0,0.00022818,2]
[355095301,1740891044003,-500.0,0.00022818,2]
[355095302,1740891044012,-500.0,0.00022818,2]
[355095303,1740891044022,-500.0,0.00022818,2]
[355095304,1740891044032,-500.0,0.00022818,2]
[355095305,1740891044041,-753.47,0.00022818,2]
[355095306,1740891044051,-500.0,0.00022818,2]
[355095307,1740891044061,-500.0,0.00022818,2]
[355095308,1740891044070,-500.0,0.00022818,2]
[355095309,1740891044079,-500.0,0.00022818,2]
[355095310,1740891044089,-500.0,0.00022818,2]
[355095311,1740891044098,-500.0,0.00022818,2]
[355095312,1740891044108,-250.0,0.00022818,2]
[355095313,1740891044117,-500.0,0.00022818,2]
[355095314,1740891044127,-1154.3,0.00022819,2]
[355095315,1740891044136,-500.0,0.00022819,2]
[355095316,1740891044146,-2973.81,0.00022819,2]
[355095317,1740891044155,-914.1,0.00022819,2]
[355095318,1740891044164,-500.0,0.00022819,2]
[355095319,1740891044173,-500.0,0.00022819,2]
[355095320,1740891044182,-505.03,0.00022819,2]
[355095321,1740891044192,-500.0,0.00022819,2]
[355095322,1740891044201,-500.0,0.00022819,2]
[355095323,1740891044211,-1772.49,0.00022819,2]
[355095324,1740891044220,-682.1,0.00022819,2]
[355095325,1740891044230,-3795.35,0.00022819,2]
[355095326,1740891044239,-543.9,0.00022819,2]
[355095327,1740891044249,-5730.46,0.00022819,2]
[355095328,1740891044258,-500.0,0.00022819,2]
[355095329,1740891044267,-4535.27,0.00022819,2]
[355095330,1740891044276,-500.0,0.00022819,2]
[355095331,1740891044286,-500.0,0.00022819,2]
[355095332,1740891044296,-500.0,0.00022819,2]
[355095333,1740891044305,-500.0,0.00022819,2]
[355095334,1740891044316,-500.0,0.00022819,2]
[355095335,1740891044326,-1236.92,0.00022819,2]
[355095336,1740891044336,-1887.83,0.00022819,2]
[355095337,1740891044345,-332.92130972,0.00022819,2]
[355095338,1740891044355,-713.67,0.00022819,2]
[355095339,1740891044365,-500.0,0.00022819,2]
[355095340,1740891044375,-500.0,0.00022819,2]
[355095341,1740891044384,-1282.57,0.00022819,2]
[355095342,1740891044394,-500.0,0.00022819,2]
[355095343,1740891044403,-500.0,0.00022819,2]
[355095344,1740891044413,-567.41,0.00022819,2]
[355095345,1740891044422,-2373.21,0.00022819,2]
[355095346,1740891044431,-6974.83,0.00022819,2]
[355095347,1740891044441,-706.65,0.00022819,2]
[355095348,1740891044450,-904.54,0.00022819,2]
[355095349,1740891044460,-598.51,0.00022819,2]
[355095350,1740891044470,-2161.29,0.00022819,2]
[355095351,1740891044479,-500.0,0.00022821,2]
[355095352,1740891044489,-500.0,0.00022821,2]
[355095353,1740891044499,-500.0,0.00022821,2]
[355095354,1740891044509,-396.57,0.00022821,2]
[355095355,1740891044519,-500.0,0.00022821,2]
[355095356,1740891044528,-500.0,0.00022821,2]
[355095357,1740891044538,-724.09,0.00022821,2]
[355095358,1740891044547,-500.0,0.00022821,2]
[355095359,1740891044558,-730.08,0.00022821,2]
[355095360,1740891044567,-500.0,0.00022821,2]
[355095361,1740891044577,-500.0,0.00022821,2]
[355095362,1740891044587,-944.38,0.00022821,2]
[355095363,1740891044597,-500.0,0.00022821,2]
[355095364,1740891044607,-570.76,0.00022821,2]
[355095365,1740891044616,-500.0,0.00022821,2]
[355095366,1740891044626,-500.0,0.00022821,2]
[355095367,1740891044635,-500.0,0.00022821,2]